Workbook

Sheet Rates
A2: ITEM TYPE | B2: UNIT TYPE | C2: Year 1 | D2: Year 2 | E2: Year 3
A3: Labour Rate | B3: shift | F3: Shift is 9 hours
A4: General labour - normal overtime | B4: hour | C4: =C3/9*1.2 -> 0 | D4: =D3/9*1.2 -> 0 | E4: =E3/9*1.3 -> 0
A5: General labour- Saturday overtime (x1.5) | B5: hour | C5: =C3/9*1.9 -> 0 | D5: =D3/9*1.9 -> 0 | E5: =E3/9*1.9 -> 0
A6: General labour - overtime Sunday/Public holiday (x2) | B6: hour | C6: =C3/9*2.8 -> 0 | D6: =D3/9*2.8 -> 0 | E6: =E3/9*2.8 -> 0
A7: General labour - standby (wknd) | B7: shift | F7: Shift is 9 hours
A8: Driver operator- Shift | B8: shift | F8: Shift is 9 hours
A9: Driver - normal overtime | B9: hour | C9: =C8/9*1.3 -> 0 | D9: =D8/9*1.3 -> 0 | E9: =E8/9*1.3 -> 0
A10: Driver - overtime Sunday/Public holiday | B10: hour | C10: =C9*2.8 -> 0 | D10: =D9*2.8 -> 0 | E10: =E9*2.8 -> 0
A11: Driver - standby (wknd) | B11: shift | F11: Shift is 12 hours
A12: Fire fighting individual labour rate | B12: hour | F12: Same hours as general labour rate above
A13: Fire fighting Rate: Bakkie | B13: shift | F13: Shift is 12 hours
A14: Fire fighting Rate: Labour truck (Inter plantation movement) | B14: R/km
A15: Fire fighting Rate: SAFCOL Fire Tender | B15: shift | F15: Shift is 12 hours
A16: Fire fighting Rate: Own Fire Tender | B16: shift | F16: Shift is 12 hours
A17: Lookout Tower Rate | B17: shift | F17: Shift is 12 hours
A18: Airstrip Rate | B18: shift | F18: Shift is 12 hours
A19: Chainsaw wet rate | B19: day
A20: Brushcutter wet rate | B20: day
A21: Lawnmower rate | B21: day
A22: weekly refuse removal from the offices, residence to the dumping site | B22: weekly
A24: RESEARCH AND DEVELOPMENT | C24: Year 1 | D24: Year 2 | E24: Year 3
A25: Tree climbing allowance | B25: daily | C25: R77.00 | D25: =C25*1.06 -> R81.62 | E25: =D25*1.06 -> R86.52
A26: Sleep out allowance | B26: per night | C26: R122.50 | D26: =C26*1.06 -> R129.85 | E26: =D26*1.06 -> R137.64
A28: FIRE FIGTHING | B28: UNIT TYPE | C28: Per month Yr1 | D28: Per month Yr2 | E28: Per month Yr3
A29: Look out (4 people per lookout for 8 hour shift) | B29: team
A30: Proto team (Driver plus 4 crew members) | B30: team
A33: MECHANISED ACTIVITIES | F33: Submit a proposal on mechanisation
A34: Planting | B34: R/Ha
A35: Watering | B35: R/Ha
A36: Weeding before plant | B36: R/Ha
A37: Fire breaks
A38: Land preparation | B38: R/Ha
A39: Weeding after plant | B39: R/Ha

Sheet Qoutation
A1: SILVICULTURE PRICING SCHEDULE
A3: Bidders Name
A5: Plantation Name | B5: Jessievale | E5: Rate Yr1 | F5: Rate Yr2 | G5: Rate Yr3 | H5: Total Yr1 | I5: Total Yr2 | J5: Total Yr3
B6: Year 1 | C6: year 2 | D6: Year 3
A7: Activities | B7: Man-days
A8: Establishment | B8: 31,363 | C8: 33,363 | D8: 32,363 | H8: =B8*$E$8 -> 0 | I8: =C8*$F$8 -> 0 | J8: =D8*$G$8 -> 0
A9: Protection
A10: Weeding
A11: Tending
A12: Conservation
A13: Pruning
A14: Supply of labour (PTM, EHM)
A15: Supply of Labour for Research trials
A16: Road clearing , Village maintenance.
A17: Gardening
E18: Totals | H18: =SUM(H8:H17) -> 0 | I18: =SUM(I8:I17) -> 0 | J18: =SUM(J8:J17) -> 0
E19: Grand Total | H19: =SUM(H18:J18) -> 0
A21: PROTO TEAMS | B21: Teams | E21: Rate/Month | H21: Total Yr1 | I21: Total Yr2 | J21: Total Yr3
A22: Proto team | H22: =B22*E22*12 -> 0 | I22: =C22*F22*12 -> 0 | J22: 0
A23: Look outs | H23: =B23*E23*12 -> 0 | I23: 0 | J23: 0
H24: =H22+H23 -> 0 | I24: =I22+I23 -> 0 | J24: 0
I25: =H24+I24+J24 -> 0
A27: Other Ad hoc work | B27: Year 1 | C27: year 2 | D27: Year 3 | E27: Rate Yr1 | F27: Rate Yr2 | G27: Rate Yr3 | H27: Total Yr1 | I27: Total Yr2 | J27: Total Yr3
A28: Normal overtime (Rate/hr) | B28: 2,900 | C28: 2,900 | D28: 2,900 | H28: =B28*E28 -> 0 | I28: 0 | J28: 0
A29: Saterday overtime (Rate/hr) | B29: 2,000 | C29: 2,000 | D29: 2,000 | H29: 0 | I29: 0 | J29: 0
A30: Sunday overtime (Rate/hr) | B30: 2,300 | C30: 2,300 | D30: 2,300 | H30: =B30*E30 -> 0 | I30: =C30*F30 -> 0 | J30: =D30*G30 -> 0
A31: Standby (Rate/day) | B31: 3,000 | C31: 3,000 | D31: 3,000 | H31: 0 | I31: 0 | J31: 0
A32: Chainsaw wet rate | B32: 500 | C32: 500 | D32: 500 | H32: 0 | I32: 0 | J32: 0
A33: Brushcutter wet rate | B33: 200 | C33: 200 | D33: 200 | H33: 0 | I33: 0 | J33: 0
A34: Lawnmower rate | B34: 300 | C34: 300 | D34: 300 | H34: 0 | I34: 0 | J34: 0
A35: Driver operator | B35: 50 | C35: 50 | D35: 50 | H35: 0 | I35: 0 | J35: 0
A36: weekly refuse removal from the offices, residence to the dumping site | B36: 52 | C36: 52 | D36: 52 | H36: 0 | I36: 0 | J36: 0
A37: Running cost - Bulk Tanker/fire truck | B37: 200 | C37: 200 | D37: 200 | H37: 0 | I37: 0 | J37: 0
A38: Bakkie fire fighting (R/km) | B38: 200 | C38: 200 | D38: 200 | H38: 0 | I38: 0 | J38: 0
A39: Truck 8 ton (R/km) | B39: 200 | C39: 200 | D39: 200 | H39: =B39*E39 -> 0 | I39: =C39*F39 -> 0 | J39: =D39*G39 -> 0
G40: TOTALS | H40: =SUM(H28:H39) -> 0 | I40: =SUM(I28:I39) -> 0 | J40: =SUM(J28:J39) -> 0
A41: SILVICULTURE PRICING SCHEDULE
A43: Bidders Name
A46: Plantation Name | B46: ROBURNIA | E46: Rate Yr1 | F46: Rate Yr2 | G46: Rate Yr3 | H46: Total Yr1 | I46: Total Yr2 | J46: Total Yr3
B47: Year 1 | C47: year 2 | D47: Year 3
A48: Activities | B48: Man-days
A49: Establishment | B49: 33,351 | C49: 34,351 | D49: 34,351 | E49: 400 | F49: 405 | G49: 410 | H49: =B49*E49 -> 13,340,400 | I49: =C49*F49 -> 13,912,155 | J49: =D49*G49 -> 14,083,910
A50: Protection
A51: Weeding
A52: Tending
A53: Conservation
A54: Pruning
A55: Supply of labour (PTM, EHM)
A56: Supply of Labour for Research trials
A57: Road clearing , Village maintenance.
A58: gardening
E59: Totals | H59: =SUM(H49:H58) -> 13,340,400 | I59: =SUM(I49:I58) -> 13,912,155 | J59: 14,083,910
E60: Grand Total | H60: =SUM(H59:J59) -> 41,336,465
A62: PROTO TEAMS | B62: Teams | E62: Rate/Month | H62: Total Yr1 | I62: Total Yr2 | J62: Total Yr3
A63: Proto team | H63: =B63*E63*12 -> 0 | I63: =C63*F63*12 -> 0 | J63: =D63*G63*12 -> 0
A64: Look outs | H64: =B64*E64*12 -> 0 | I64: 0 | J64: 0
H65: =H63+H64 -> 0 | I65: =I63+I64 -> 0 | J65: =J63+J64 -> 0
I66: =H65+I65+J65 -> 0
A68: Other Ad hoc work | B68: Year 1 | C68: year 2 | D68: Year 3 | E68: Rate Yr1 | F68: Rate Yr2 | G68: Rate Yr3 | H68: Total Yr1 | I68: Total Yr2 | J68: Total Yr3
A69: Normal overtime (Rate/hr) | B69: 3,000 | C69: 3,000 | D69: 3,000 | H69: =B69*E69 -> 0 | I69: 0 | J69: 0
A70: Saterday overtime (Rate/hr) | B70: 3,000 | C70: 3,000 | D70: 3,000 | H70: 0 | I70: 0 | J70: 0
A71: Sunday overtime (Rate/hr) | B71: 2,000 | C71: 2,000 | D71: 2,000 | H71: =B71*E71 -> 0 | I71: =C71*F71 -> 0 | J71: =D71*G71 -> 0
A72: Standby (Rate/day) | B72: 3,000 | C72: 3,000 | D72: 3,000 | H72: 0 | I72: 0 | J72: 0
A73: Chainsaw wet rate | B73: 696 | C73: 696 | D73: 696 | H73: 0 | I73: 0 | J73: 0
A74: Brushcutter wet rate | B74: 232 | C74: 232 | D74: 232 | H74: 0 | I74: 0 | J74: 0
A75: Lawnmower rate | B75: 232 | C75: 232 | D75: 232 | H75: =B75*E75 -> 0 | I75: 0 | J75: 0
A76: Driver operator | B76: 10 | C76: 10 | D76: 10 | H76: 0 | I76: 0 | J76: 0
A77: weekly refuse removal from the offices, residence to the dumping site | B77: 52 | C77: 52 | D77: 52 | H77: =B77*E77 -> 0 | I77: =C77*F77 -> 0 | J77: =D77*G77 -> 0
A78: Running cost - Bulk Tanker/fire truck | B78: 200 | C78: 200 | D78: 200 | H78: =B78*E78 -> 0 | I78: =C78*F78 -> 0 | J78: =D78*G78 -> 0
A79: Bakkie fire fighting (R/km) | B79: 200 | C79: 200 | D79: 200 | H79: 0 | I79: 0 | J79: 0
A80: Truck 8 ton (R/km) | B80: 200 | C80: 200 | D80: 200 | H80: 0 | I80: 0 | J80: 0
G81: TOTALS | H81: =SUM(H69:H80) -> 0 | I81: =SUM(I69:I80) -> 0 | J81: 0
A83: SILVICULTURE PRICING SCHEDULE
A85: Bidders Name
A88: Plantation Name | B88: BELFAST | E88: Rate Yr1 | F88: Rate Yr2 | G88: Rate Yr3 | H88: Total Yr1 | I88: Total Yr2 | J88: Total Yr3
B89: Year 1 | C89: year 2 | D89: Year 3
A90: Activities | B90: Man-days
A91: Establishment | B91: 13,800 | C91: 13,800 | D91: 13,800 | H91: =B91*E91 -> 0 | I91: =C91*F91 -> 0 | J91: =D91*G91 -> 0
A92: Protection
A93: Weeding
A94: Tending
A95: Conservation
A96: Pruning
A97: Supply of labour (PTM, EHM)
A98: Supply of Labour for Research trials
A99: Road clearing , Village maintenance.
A100: Gardening
E101: Totals | H101: =SUM(H91:H100) -> 0 | I101: =SUM(I91:I100) -> 0 | J101: 0
E102: Grand Total | H102: =SUM(H101:J101) -> 0
A104: PROTO TEAMS | B104: Teams | E104: Rate/Month | H104: Total Yr1 | I104: Total Yr2 | J104: Total Yr3
A105: Proto team | H105: =B105*E105*12 -> 0 | I105: =C105*F105*12 -> 0 | J105: =D105*G105*12 -> 0
A106: Look outs | H106: =B106*E106*12 -> 0 | I106: 0 | J106: 0
H107: =H105+H106 -> 0 | I107: =I105+I106 -> 0 | J107: =J105+J106 -> 0
I108: =H107+I107+J107 -> 0
A111: Other Ad hoc work | B111: Year 1 | C111: year 2 | D111: Year 3 | E111: Rate Yr1 | F111: Rate Yr2 | G111: Rate Yr3 | H111: Total Yr1 | I111: Total Yr2 | J111: Total Yr3
A112: Normal overtime (Rate/hr) | B112: 1,700 | C112: 1,700 | D112: 1,700 | H112: =B112*E112 -> 0 | I112: 0 | J112: 0
A113: Saterday overtime (Rate/hr) | B113: 1,000 | C113: 1,000 | D113: 1,000 | H113: 0 | I113: 0 | J113: 0
A114: Sunday overtime (Rate/hr) | B114: 1,000 | C114: 1,000 | D114: 1,000 | H114: =B114*E114 -> 0 | I114: =C114*F114 -> 0 | J114: =D114*G114 -> 0
A115: Standby (Rate/day) | B115: 2,100 | C115: 2,100 | D115: 2,100 | H115: 0 | I115: 0 | J115: 0
A116: Chainsaw wet rate | B116: 800 | C116: 800 | D116: 800 | H116: 0 | I116: 0 | J116: 0
A117: Brushcutter wet rate | B117: 200 | C117: 200 | D117: 200 | H117: 0 | I117: 0 | J117: 0
A118: Lawnmower rate | B118: 500 | C118: 500 | D118: 500 | H118: 0 | I118: 0 | J118: 0
A119: Driver operator | B119: 80 | C119: 80 | D119: 80 | H119: 0 | I119: 0 | J119: 0
A120: weekly refuse removal from the offices, residence to the dumping site | B120: 52 | C120: 52 | D120: 52 | H120: 0 | I120: 0 | J120: 0
A121: Running cost - Bulk Tanker/fire truck | B121: 200 | C121: 200 | D121: 200 | H121: 0 | I121: 0 | J121: 0
A122: Bakkie fire fighting (R/km) | B122: 200 | C122: 200 | D122: 200 | H122: 0 | I122: 0 | J122: 0
A123: Truck 8 ton (R/km) | B123: 200 | C123: 200 | D123: 200 | H123: =B123*E123 -> 0 | I123: =C123*F123 -> 0 | J123: =D123*G123 -> 0
G124: TOTALS | H124: =SUM(H112:H123) -> 0 | I124: =SUM(I112:I123) -> 0 | J124: =SUM(J112:J123) -> 0
A126: SILVICULTURE PRICING SCHEDULE
A128: Bidders Name
A131: Plantation Name | B131: BLYDE | E131: Rate Yr1 | F131: Rate Yr2 | G131: Rate Yr3 | H131: Total Yr1 | I131: Total Yr2 | J131: Total Yr3
B132: Year 1 | C132: year 2 | D132: Year 3
A133: Activities | B133: Man-days
A134: Establishment | B134: 28,320 | C134: 29,320 | D134: 29,320 | H134: =B134*E134 -> 0 | I134: =C134*F134 -> 0 | J134: =D134*G134 -> 0
A135: Protection
A136: Weeding
A137: Tending
A138: Conservation
A139: Pruning
A140: Supply of labour (PTM, EHM)
A141: Supply of Labour for Research trials
A142: Road clearing , Village maintenance.
A143: Gardening
E144: Totals | H144: =SUM(H134:H143) -> 0 | I144: =SUM(I134:I143) -> 0 | J144: 0
E145: Grand Total | H145: =SUM(H144:J144) -> 0
A147: PROTO TEAMS | B147: Teams | E147: Rate/Month | H147: Total Yr1 | I147: Total Yr2 | J147: Total Yr3
A148: Proto team | H148: =B148*E148*12 -> 0 | I148: =C148*F148*12 -> 0 | J148: =D148*G148*12 -> 0
A149: Look outs | H149: =B149*E149*12 -> 0 | I149: 0 | J149: 0
H150: =H148+H149 -> 0 | I150: =I148+I149 -> 0 | J150: =J148+J149 -> 0
I151: =H150+I150+J150 -> 0
A153: Other Ad hoc work | B153: Year 1 | C153: year 2 | D153: Year 3 | E153: Rate Yr1 | F153: Rate Yr2 | G153: Rate Yr3 | H153: Total Yr1 | I153: Total Yr2 | J153: Total Yr3
A154: Normal overtime (Rate/hr) | B154: 3,000 | C154: 3,000 | D154: 3,000 | H154: =B154*E154 -> 0 | I154: 0 | J154: 0
A155: Saterday overtime (Rate/hr) | B155: 1,000 | C155: 1,000 | D155: 1,000 | H155: =B155*E155 -> 0 | I155: =C155*F155 -> 0 | J155: =D155*G155 -> 0
A156: Sunday overtime (Rate/hr) | B156: 3,000 | C156: 3,000 | D156: 3,000 | H156: 0 | I156: 0 | J156: 0
A157: Standby (Rate/day) | B157: 2,160 | C157: 2,161 | D157: 2,162 | H157: 0 | I157: 0 | J157: 0
A158: Chainsaw wet rate | B158: 120 | C158: 120 | D158: 120 | H158: 0 | I158: 0 | J158: 0
A159: Brushcutter wet rate | B159: 1,512 | C159: 1,512 | D159: 1,512 | H159: 0 | I159: 0 | J159: 0
A160: Lawnmower rate | B160: 800 | C160: 800 | D160: 800 | H160: 0 | I160: 0 | J160: 0
A161: Driver operator | B161: 100 | C161: 100 | D161: 100 | H161: 0 | I161: 0 | J161: 0
A162: weekly refuse removal from the offices, residence to the dumping site | B162: 52 | C162: 52 | D162: 52 | H162: =B162*E162 -> 0 | I162: =C162*F162 -> 0 | J162: =D162*G162 -> 0
A163: Running cost - Bulk Tanker/fire truck | B163: 200 | C163: 200 | D163: 200 | H163: =B163*E163 -> 0 | I163: =C163*F163 -> 0 | J163: =D163*G163 -> 0
A164: Bakkie fire fighting (R/km) | B164: 200 | C164: 200 | D164: 200 | H164: 0 | I164: 0 | J164: 0
A165: Truck 8 ton (R/km) | B165: 200 | C165: 200 | D165: 200 | H165: 0 | I165: 0 | J165: 0
G166: TOTALS | H166: =SUM(H154:H165) -> 0 | I166: =SUM(I154:I165) -> 0 | J166: 0
A168: SILVICULTURE PRICING SCHEDULE
A170: Bidders Name
A173: Plantation Name | B173: BROOKLANDS | E173: Rate Yr1 | F173: Rate Yr2 | G173: Rate Yr3 | H173: Total Yr1 | I173: Total Yr2 | J173: Total Yr3
B174: Year 1 | C174: year 2 | D174: Year 3
A175: Activities | B175: Man-days
A176: Establishment | B176: 17,669 | C176: 19,669 | D176: 18,669 | H176: =B176*E176 -> 0 | I176: =C176*F176 -> 0 | J176: =D176*G176 -> 0
A177: Protection
A178: Weeding
A179: Tending
A180: Conservation
A181: Pruning
A182: Supply of labour (PTM, EHM)
A183: Supply of Labour for Research trials
A184: Road clearing , Village maintenance.
A185: Gardening
E186: Totals | H186: =SUM(H176:H185) -> 0 | I186: =SUM(I176:I185) -> 0 | J186: 0
E187: Grand Total | H187: =SUM(H186:J186) -> 0
A189: Other Ad hoc work | B189: Year 1 | C189: year 2 | D189: Year 3 | E189: Rate Yr1 | F189: Rate Yr2 | G189: Rate Yr3 | H189: Total Yr1 | I189: Total Yr2 | J189: Total Yr3
A190: Normal overtime (Rate/hr) | B190: 3,000 | C190: 3,000 | D190: 3,000 | H190: =B190*E190 -> 0 | I190: 0 | J190: 0
A191: Saterday overtime (Rate/hr) | B191: 1,000 | C191: 1,000 | D191: 1,000 | H191: =B191*E191 -> 0 | I191: =C191*F191 -> 0 | J191: =D191*G191 -> 0
A192: Sunday overtime (Rate/hr) | B192: 3,000 | C192: 3,000 | D192: 3,000 | H192: 0 | I192: 0 | J192: 0
A193: Standby (Rate/day) | B193: 2,000 | C193: 2,000 | D193: 2,000 | H193: 0 | I193: 0 | J193: 0
A194: Chainsaw wet rate | B194: 834 | C194: 834 | D194: 834 | H194: 0 | I194: 0 | J194: 0
A195: Brushcutter wet rate | B195: 834 | C195: 834 | D195: 834 | H195: 0 | I195: 0 | J195: 0
A196: Lawnmower rate | B196: 1,000 | C196: 1,000 | D196: 1,000 | H196: 0 | I196: 0 | J196: 0
A197: Driver operator | B197: 50 | C197: 50 | D197: 50 | H197: 0 | I197: 0 | J197: 0
A198: weekly refuse removal from the offices, residence to the dumping site | B198: 52 | C198: 52 | D198: 52 | H198: =B198*E198 -> 0 | I198: =C198*F198 -> 0 | J198: =D198*G198 -> 0
A199: Running cost - Bulk Tanker/fire truck | B199: 200 | C199: 200 | D199: 200 | H199: =B199*E199 -> 0 | I199: =C199*F199 -> 0 | J199: =D199*G199 -> 0
A200: Bakkie fire fighting (R/km) | B200: 200 | C200: 200 | D200: 200 | H200: 0 | I200: 0 | J200: 0
A201: Truck 8 ton (R/km) | B201: 200 | C201: 200 | D201: 200 | H201: 0 | I201: 0 | J201: 0
G202: TOTALS | H202: =SUM(H190:H201) -> 0 | I202: =SUM(I190:I201) -> 0 | J202: 0
A206: SILVICULTURE PRICING SCHEDULE
A208: Bidders Name
A211: Plantation Name | B211: BERGVLIET | E211: Rate Yr1 | F211: Rate Yr2 | G211: Rate Yr3 | H211: Total Yr1 | I211: Total Yr2 | J211: Total Yr3
B212: Year 1 | C212: year 2 | D212: Year 3
A213: Activities | B213: Man-days
A214: Establishment | B214: 24,692 | C214: 24,692 | D214: 24,692 | H214: =B214*E214 -> 0 | I214: =C214*F214 -> 0 | J214: =D214*G214 -> 0
A215: Protection
A216: Weeding
A217: Tending
A218: Conservation
A219: Pruning
A220: Supply of labour (PTM, EHM)
A221: Supply of Labour for Research trials
A222: Road clearing , Village maintenance.
A223: Gardening
E224: Totals | H224: =SUM(H214:H223) -> 0 | I224: =SUM(I214:I223) -> 0 | J224: 0
E225: Grand Total | H225: =SUM(H224:J224) -> 0
A227: PROTO TEAMS | B227: Teams | E227: Rate/Month | H227: Total Yr1 | I227: Total Yr2 | J227: Total Yr3
A228: Proto team | H228: =B228*E228*12 -> 0 | I228: =C228*F228*12 -> 0 | J228: =D228*G228*12 -> 0
A229: Look outs | H229: =B229*E229*12 -> 0 | I229: 0 | J229: 0
H230: =H228+H229 -> 0 | I230: =I228+I229 -> 0 | J230: =J228+J229 -> 0
I231: =H230+I230+J230 -> 0
A233: Other Ad hoc work | B233: Year 1 | C233: year 2 | D233: Year 3 | E233: Rate Yr1 | F233: Rate Yr2 | G233: Rate Yr3 | H233: Total Yr1 | I233: Total Yr2 | J233: Total Yr3
A234: Normal overtime (Rate/hr) | B234: 3,000 | C234: 3,000 | D234: 3,000 | H234: =B234*E234 -> 0 | I234: 0 | J234: 0
A235: Saterday overtime (Rate/hr) | B235: 1,200 | C235: 1,200 | D235: 1,200 | H235: =B235*E235 -> 0 | I235: =C235*F235 -> 0 | J235: =D235*G235 -> 0
... 67 more rows

Sheet Contract Value
A6: BIDDER'S NAME
A8: PLANTATION | C8: =Qoutation!$B$5 -> Jessievale
B12: CORE SILVICULTURE | D12: =Qoutation!H19 -> R0.00
B13: PROTO TEAM | D13: =Qoutation!I25 -> R0.00
B14: AD HOC ACTIVITIES | D14: =SUM(Qoutation!H40:J40) -> R0.00
C16: TOTAL | D16: =D12+D14+D13 -> R0.00
C17: VAT @15% | D17: =D16*0.15 -> R0.00
B19: GRAND TOTAL | D19: =D16+D17 -> R0.00
B21: TOTAL IN WORDS
A30: 1. Failure to fully complete the document (Annexure B) will be disqualified
A31: 2. Bidders to provide SAFCOL with market related rates as bidders who quotes within a certain market range will be appointed
A32: 3. SAFCOL pays only for work completed
A33: 4. Bidders are not entitled to the total contract value as it is indicative, caluse 3 above is applicable.
A41: BIDDER'S NAME
A43: PLANTATION | C43: =Qoutation!$B$46 -> ROBURNIA
B47: CORE SILVICULTURE | D47: =Qoutation!H60 -> R41,336,465.00
B48: PROTO TEAM | D48: =Qoutation!I66 -> R0.00
B49: AD HOC ACTIVITIES | D49: =SUM(Qoutation!H81:J81) -> R0.00
C51: TOTAL | D51: =D47+D49+D48 -> R41,336,465.00
C52: VAT @15% | D52: =D51*0.15 -> R6,200,469.75
B54: GRAND TOTAL | D54: =D51+D52 -> R47,536,934.75
B56: TOTAL IN WORDS
A65: 1. Failure to fully complete the document (Annexure B) will be disqualified
A66: 2. Bidders to provide SAFCOL with market related rates as bidders who quotes within a certain market range will be appointed
A67: 3. SAFCOL pays only for work completed
A68: 4. Bidders are not entitled to the total contract value as it is indicative, caluse 3 above is applicable.
A74: BIDDER'S NAME
A76: PLANTATION | C76: =Qoutation!$B$88 -> BELFAST
B80: CORE SILVICULTURE | D80: =Qoutation!H102 -> R0.00
B81: PROTO TEAM | D81: =Qoutation!I108 -> R0.00
B82: AD HOC ACTIVITIES | D82: =SUM(Qoutation!H124:J124) -> R0.00
C84: TOTAL | D84: =D80+D82+D81 -> R0.00
C85: VAT @15% | D85: =D84*0.15 -> R0.00
B87: GRAND TOTAL | D87: =D84+D85 -> R0.00
B89: TOTAL IN WORDS
A98: 1. Failure to fully complete the document (Annexure B) will be disqualified
A99: 2. Bidders to provide SAFCOL with market related rates as bidders who quotes within a certain market range will be appointed
A100: 3. SAFCOL pays only for work completed
A101: 4. Bidders are not entitled to the total contract value as it is indicative, caluse 3 above is applicable.
A107: BIDDER'S NAME
A109: PLANTATION | C109: =Qoutation!$B$131 -> BLYDE
B113: CORE SILVICULTURE | D113: =Qoutation!H145 -> R0.00
B114: AD HOC ACTIVITIES | D114: =SUM(Qoutation!H166:J166) -> R0.00
C116: TOTAL | D116: =D113+D114 -> R0.00
C117: VAT @15% | D117: =D116*0.15 -> R0.00
B119: GRAND TOTAL | D119: =D116+D117 -> R0.00
B121: TOTAL IN WORDS
A130: 1. Failure to fully complete the document (Annexure B) will be disqualified
A131: 2. Bidders to provide SAFCOL with market related rates as bidders who quotes within a certain market range will be appointed
A132: 3. SAFCOL pays only for work completed
A133: 4. Bidders are not entitled to the total contract value as it is indicative, caluse 3 above is applicable.
A139: BIDDER'S NAME
A141: PLANTATION | C141: =Qoutation!$B$173 -> BROOKLANDS
B145: CORE SILVICULTURE | D145: =Qoutation!H187 -> R0.00
B146: AD HOC ACTIVITIES | D146: =SUM(Qoutation!H202:J202) -> R0.00
C148: TOTAL | D148: =D145+D146 -> R0.00
C149: VAT @15% | D149: =D148*0.15 -> R0.00
B151: GRAND TOTAL | D151: =D148+D149 -> R0.00
B153: TOTAL IN WORDS
A162: 1. Failure to fully complete the document (Annexure B) will be disqualified
A163: 2. Bidders to provide SAFCOL with market related rates as bidders who quotes within a certain market range will be appointed
A164: 3. SAFCOL pays only for work completed
A165: 4. Bidders are not entitled to the total contract value as it is indicative, caluse 3 above is applicable.
A171: BIDDER'S NAME
A173: PLANTATION | C173: =Qoutation!$B$211 -> BERGVLIET
B177: CORE SILVICULTURE | D177: =Qoutation!H225 -> R0.00
B178: PROTO TEAM | D178: =Qoutation!I231 -> R0.00
B179: AD HOC ACTIVITIES | D179: =SUM(Qoutation!H246:J246) -> R0.00
C181: TOTAL | D181: =D177+D179+D178 -> R0.00
C182: VAT @15% | D182: =D181*0.15 -> R0.00
B184: GRAND TOTAL | D184: =D181+D182 -> R0.00
B186: TOTAL IN WORDS
A195: 1. Failure to fully complete the document (Annexure B) will be disqualified
A196: 2. Bidders to provide SAFCOL with market related rates as bidders who quotes within a certain market range will be appointed
A197: 3. SAFCOL pays only for work completed
A198: 4. Bidders are not entitled to the total contract value as it is indicative, caluse 3 above is applicable.
A204: BIDDER'S NAME
A206: PLANTATION | C206: =Qoutation!$B$254 -> WITKLIP
B210: CORE SILVICULTURE | D210: =Qoutation!H268 -> R0.00
B211: AD HOC ACTIVITIES | D211: =SUM(Qoutation!H283:J283) -> R0.00
C213: TOTAL | D213: =D210+D211 -> R0.00
C214: VAT @15% | D214: =D213*0.15 -> R0.00
B216: GRAND TOTAL | D216: =D213+D214 -> R0.00
B218: TOTAL IN WORDS
A227: 1. Failure to fully complete the document (Annexure B) will be disqualified
A228: 2. Bidders to provide SAFCOL with market related rates as bidders who quotes within a certain market range will be appointed
A229: 3. SAFCOL pays only for work completed
A230: 4. Bidders are not entitled to the total contract value as it is indicative, caluse 3 above is applicable.

Sheet Sheet1 (hidden)
F1: Year 1 | H1: Year 2 | I1: Year 3
E2: Hourly Rate | F2: Daily Rate
A3: 1 | B3: Basic wage & Statutory costs | E3: R28.40 | F3: =E3*9 -> R 255.60 | H3: =F3*1.08 -> R 276 | I3: =H3*1.08 -> R 298
B4: Bonus pay per annum
B5: Sub-total Wages: | F5: =SUM(F3:F4) -> R 255.60 | H5: =SUM(H3:H4) -> R 276.05 | I5: R 298.13
B6: What is your assessment rate with WCC? | E6: 2.2% | F6: =$F$5*E6 -> R 5.50 | H6: =$H$5*E6 -> R 5.94 | I6: =$I$5*E6 -> R 6.41
B7: What is your UIF contribution? (as % of total wages) | E7: 1.0% | F7: =$F$5*E7 -> R 2.56 | H7: =$H$5*E7 -> R 2.76 | I7: =$I$5*E7 -> R 2.98
B8: What % of net wage do you allow for medical expenses? | E8: 0.1% | F8: R 0.26 | H8: R 0.28 | I8: R 0.30
B9: What % of total remuneration do you allow for training? | E9: 2.1% | F9: R 5.37 | H9: R 5.80 | I9: R 6.26
B10: Provident/pension fund: What is your % contribution ? | E10: 0.0% | F10: R 0.00 | H10: R 0.00 | I10: R 0.00
B11: Sub-total: | F11: =SUM(F5:F10) -> R 269.27 | H11: =SUM(H5:H10) -> R 290.82 | I11: R 314.08
A13: 2 | B13: Lost time recovery
B14: How many statutory leave days in this year? | E14: 13 | F14: =($F$11*E14)/251 -> R 13.95 | G14: divided by the number of available production days | H14: =($H$11*E14)/251 -> R 15.06 | I14: =($I$11*E14)/251 -> R 16.27
B15: How many days/labourer provided for sick leave/year? | E15: 5 | F15: =($F$11*E15)/251 -> R 5.36 | H15: =($H$11*E15)/251 -> R 5.79 | I15: =($I$11*E15)/251 -> R 6.26
B16: How many days/labourer provided for leave/year? | E16: 15 | F16: R 16.09 | H16: R 17.38 | I16: R 18.77
B17: How many days provided for compassionate leave/ year? | E17: 1 | F17: R 1.07 | H17: R 1.16 | I17: R 1.25
B18: How many days provided for training/ year? | E18: 3 | F18: R 2.68 | H18: R 2.90 | I18: R 3.13
B19: How many days provided for un-productive time/ year? | E19: 1 | F19: R 1.07 | H19: R 1.16 | I19: R 1.25
B20: Sub-total: | F20: =SUM(F14:F19) -> R 40.23 | H20: =SUM(H14:H19) -> R 43.45 | I20: R 46.92
E21: %
B22: Sub-total: | F22: =F20+F11 -> R 309.50 | H22: =H20+H11 -> R 334.27 | I22: R 361.01
B24: Working component | E24: Percent Contribution to the Rate
B25: Transport | E25: 12 | F25: =$F$22*(E25/100) -> R 37.14 | H25: =$H$22*(E25/100) -> R 40.11 | I25: =$I$22*(E25/100) -> R 43.32
B26: Medicals | E26: 1 | F26: =$F$22*(E26/100) -> R 3.10 | H26: =$H$22*(E26/100) -> R 3.34 | I26: =$I$22*(E26/100) -> R 3.61
B27: Tools | E27: 3 | F27: =$F$22*(E27/100) -> R 9.29 | H27: R 10.03 | I27: R 10.83
B28: PPE | E28: 5 | F28: =$F$22*(E28/100) -> R 15.48 | H28: R 16.71 | I28: R 18.05
B29: Training | E29: 5 | F29: R 15.48 | H29: R 16.71 | I29: R 18.05
B30: Overheads | E30: 8 | F30: R 24.76 | H30: R 26.74 | I30: R 28.88
B32: Sub-total Working component | F32: =SUM(F25:F30) -> R 105.23 | H32: =SUM(H25:H30) -> R 113.65 | I32: R 122.74
B33: Total excluding markup | F33: =F22+F32 -> R 414.74 | H33: =H22+H32 -> R 447.92 | I33: R 483.75
A34: 3 | B34: Mark-up | E34: 10 | F34: =F33*0.1 -> R41.47 | H34: =H33*0.1 -> R44.79 | I34: R48.37
A37: 5 | B37: Tendered Unit rate | F37: =F33+F34 -> R 456.21 | G37: Ex Vat | H37: =H33+H34 -> R 492.71 | I37: R 532.12
A39: 6 | B39: Unit rate | F39: =F37*1.15 -> R 524.64 | G39: Incl Vat | H39: =H37*1.15 -> R 566.61 | I39: R 611.94
